fUST/lending_fUST_20251020
["ID","MTS","AMOUNT","RATE_DAILY","PERIOD"]
[391861562,1760931049604,-2468.51,0.000306,2]
[391861563,1760931049613,-609.0,0.00030609,30]
[391861564,1760931049623,-762.0,0.00030609,30]
[391861565,1760931049726,-168.0,0.00030663,2]
[391861566,1760931049736,-609.0,0.00030663,30]
[391861567,1760931049746,-762.0,0.00030663,30]
[391861568,1760931049756,-1191.51646734,0.0003069,2]
[391861569,1760931049766,-606.84385405,0.000307,2]
[391861570,1760931049776,-609.0,0.00030718,30]
[391861571,1760931049786,-762.0,0.00030718,30]
[391861572,1760931049796,-697.0,0.00030724,2]
[391861573,1760931049806,-759.0,0.00030725,2]
[391861574,1760931049815,-503.0,0.00030725,2]
[391861575,1760931049825,-823.0,0.00030725,2]
[391861576,1760931049835,-984.82327672,0.00030765,2]
[391861577,1760931049846,-609.0,0.00030773,30]
[391861578,1760931049855,-762.0,0.00030773,30]
[391861579,1760931049865,-172.442264,0.00030778,60]
[391861580,1760931049875,-393.21221822,0.0003079,30]
[391861581,1760931049885,-609.0,0.00030828,30]
[391861582,1760931049894,-762.0,0.00030828,30]
[391861583,1760931049904,-168.0,0.00030832,2]
[391861584,1760931049913,-5888.0,0.00030879,2]
[391861585,1760931049922,-609.0,0.00030882,30]
[391861586,1760931049931,-762.0,0.00030882,30]
[391861587,1760931049941,-613.90234435,0.00030937,30]
[391861588,1760931049951,-772.9602415,0.00030937,30]
[391861589,1760931049961,-189.919523,0.0003095,20]
[391861590,1760931049970,-155.212055,0.0003095,20]
[391861591,1760931049979,-392.6151505,0.00030986,30]
[391861592,1760931049988,-401.6494749,0.00030986,30]
[391861593,1760931049997,-392.6151505,0.00030986,30]
[391861594,1760931050007,-392.6151505,0.00030986,30]
[391861595,1760931050016,-392.6151505,0.00030986,30]
[391861596,1760931050025,-392.6151505,0.00030986,30]
[391861597,1760931050034,-392.6151505,0.00030986,30]
[391861598,1760931050044,-303.52553925,0.0003099,2]
[391861599,1760931050053,-251.11897888,0.00030991,2]
[391861600,1760931050062,-168.0,0.00030996,2]
[391861601,1760931050071,-48261.60244053,0.00031,3]
[391861602,1760931050243,-1911.35040885,0.00031,3]
[391861603,1760931050589,-1000.0,0.00024783,2]
[391861604,1760931051142,-2.70424339,0.00024783,2]
[391861605,1760931051155,-3815.61575661,0.00024783,2]
[391861606,1760931051165,-151.0,0.000249,7]
[391861607,1760931051177,-151.0,0.00024967,7]
[391861608,1760931051188,-151.0,0.0002499,7]
[391861609,1760931051200,-151.0,0.0002499,7]
[391861610,1760931051212,-5781.99,0.00025774,2]
[391861611,1760931051225,-6745.65,0.00026766,2]
[391861612,1760931051235,-7709.32,0.00027757,2]
[391861613,1760931051249,-8672.98,0.00028748,2]
[391861614,1760931051260,-740.38982778,0.00030952,2]
[391861615,1760931051271,-4773.40448554,0.00031,3]
[391861616,1760931051285,-3212.73349085,0.00031,3]
[391861617,1760931051579,-401.28,0.00024957,10]
[391861618,1760931051591,-158.962569,0.00025,7]
[391861619,1760931051601,-9636.65,0.0002974,2]
[391861620,1760931051612,-111095.94444982,0.00031,3]
[391861621,1760931052040,-150.0,0.00024399,2]
[391861622,1760931052059,-5000.0,0.00024535,2]
[391861623,1760931052069,-150.0,0.00025399,2]
[391861624,1760931052079,-13402.46418309,0.00031,3]
[391861625,1760931054339,5000.0,0.00024073,2]
[391861626,1760931196806,306.43,0.0002247,2]
[391861627,1760931197197,612.86,0.0002354,2]
[391861629,1760931261739,5000.0,0.00024073,2]
[391861630,1760931283969,5000.0,0.00024073,2]
[391861631,1760931307237,0.01,0.00024073,2]
[391861632,1760931307259,4999.99,0.00024073,2]
[391861633,1760931330122,5000.0,0.00024073,2]
[391861634,1760931352760,0.02,0.00024073,2]
[391861635,1760931352782,3462.9800718,0.00024073,2]
[391861636,1760931358837,343.4,0.00020576,2]
[391861637,1760931359273,686.79,0.00021556,2]
[391861638,1760931359689,1030.19,0.00022536,2]
[391861639,1760931360115,1373.59,0.00023515,2]
[391861640,1760931412664,417.15472785,0.00024073,2]
[391861641,1760931480067,278.07,0.00015984,2]
[391861642,1760931520289,312.35,0.00020508,2]
[391861643,1760931520738,624.7,0.00021485,2]
[391861644,1760931521103,937.04,0.00022461,2]
[391861645,1760931521510,533.74520035,0.00023438,2]
[391861646,1760931521531,715.64479965,0.00023438,2]
[391861647,1760931599657,272.59,0.00021228,2]
[391861648,1760931600088,545.19,0.00022239,2]
[391861649,1760931600569,817.78,0.0002325,2]
[391861650,1760931679305,251.78,0.0002122,2]
[391861651,1760931679783,503.56,0.00022231,2]
[391861652,1760931680238,755.34,0.00023241,2]
[391861653,1760931758507,232.55,0.00020641,2]
[391861654,1760931759071,465.1,0.00021624,2]
[391861655,1760931759569,697.65,0.00022606,2]
[391861656,1760931759977,930.21,0.00023589,2]
[391861657,1760931782437,417.15472785,0.00024073,2]
[391861658,1760931839842,202.95,0.00020588,2]
[391861659,1760931840270,405.91,0.00021569,2]
[391861660,1760931840679,608.86,0.00022549,2]
[391861661,1760931841117,811.82,0.0002353,2]
[391861662,1760931921528,177.12,0.00020543,2]
[391861663,1760931921957,354.25,0.00021521,2]
[391861664,1760931922389,531.37,0.00022499,2]
[391861665,1760931922824,303.1804725,0.00023478,2]
[391861666,1760931922846,405.3095275,0.00023478,2]
[391861667,1760932000885,154.58,0.00020538,2]
[391861668,1760932001307,309.16,0.00021516,2]
[391861669,1760932001701,463.74,0.00022494,2]
[391861670,1760932002131,618.32,0.00023472,2]
[391861671,1760932079336,150.0,0.00020533,2]
[391861672,1760932079744,269.81,0.00021511,2]
[391861673,1760932080175,404.72,0.00022489,2]
[391861674,1760932080583,539.63,0.00023467,2]
[391861681,1760932158280,150.0,0.00020532,2]
[391861682,1760932158693,235.09,0.0002151,2]
[391861683,1760932159151,352.63,0.00022488,2]
[391861684,1760932159571,470.18,0.00023466,2]
[391862162,1760932237595,150.0,0.00020527,2]
[391862163,1760932237725,-169.152193,0.00024085,2]
[391862164,1760932237735,-166.2944247,0.00024247,2]
[391862165,1760932237744,-737.21447359,0.00024346,2]
[391862166,1760932237827,-462.78552641,0.00024346,2]
[391862167,1760932237836,-1414.29816944,0.00024347,2]
[391862168,1760932237882,-3091.08043716,0.00024347,2]
[391862169,1760932237891,-155.28345771,0.00024347,2]
[391862170,1760932237901,-300.0,0.00024441,2]
[391862171,1760932237910,-300.0,0.00024442,2]
[391862172,1760932237919,-300.0,0.00024442,2]
[391862173,1760932237928,-300.0,0.00024442,2]
[391862174,1760932237937,-300.0,0.00024442,2]
[391862175,1760932237946,-759.0,0.00024449,2]
[391862177,1760932237963,-1000.0,0.00024868,2]
[391862178,1760932237972,-1000.0,0.00024868,2]
[391862179,1760932237981,-1000.0,0.00024868,2]
[391862180,1760932237991,-1000.0,0.00024868,2]
[391862181,1760932238000,-1000.0,0.00024868,2]
[391862182,1760932238009,-955.3,0.00024868,2]
[391862183,1760932238019,-178.57597637,0.00024947,2]
[391862184,1760932238029,-156.82025666,0.00024989,2]
[391862185,1760932238038,-517.64237971,0.00024989,2]
[391862186,1760932238048,-170.51940352,0.00024989,2]
[391862187,1760932238058,-160.0,0.00025,2]
[391862188,1760932238068,-300.14487974,0.00025184,2]
[391862189,1760932238078,-666.0,0.00025356,2]
[391862190,1760932238088,-432.26703747,0.00025528,2]
[391862191,1760932238098,-201.86849503,0.00025547,2]
[391862192,1760932238107,-260.0,0.00025548,2]
[391862193,1760932238117,-199.0,0.00025589,7]
[391862194,1760932238127,-21159.8891665,0.0002559,2]
[391862195,1760932238137,-744.69779214,0.00025653,2]
[391862196,1760932238147,-282.27646199,0.00025673,2]
[391862197,1760932238157,-931.75628348,0.00025799,2]
[391862198,1760932238166,-199.0,0.00025863,8]
[391862199,1760932238175,-360.0,0.00026096,2]
[391862200,1760932238185,-210.16390627,0.00026137,9]
[391862201,1760932238195,-225.16101369,0.00026147,2]
[391862202,1760932238209,-214.47530955,0.00026279,2]
[391862203,1760932238219,-500.0,0.00026279,2]
[391862204,1760932238229,-485.27738209,0.00026279,2]
[391862205,1760932238238,-226.23461202,0.00026279,2]
[391862206,1760932238248,-500.0,0.00026279,2]
[391862207,1760932238258,-285.0064076,0.00026279,2]
[391862208,1760932238268,-500.0,0.00026279,2]
[391862209,1760932238277,-500.0,0.00026279,2]
[391862210,1760932238287,-456.97307727,0.00026279,2]
[391862211,1760932238296,-500.0,0.00026279,2]
[391862212,1760932238305,-500.0,0.00026279,2]
[391862213,1760932238315,-500.0,0.00026279,2]
[391862214,1760932238324,-500.0,0.00026279,2]
[391862215,1760932238333,-500.0,0.00026279,2]
[391862216,1760932238343,-500.0,0.00026279,2]
[391862217,1760932238352,-500.0,0.00026279,2]
[391862218,1760932238361,-605.30254794,0.00026279,2]
[391862219,1760932238371,-500.0,0.00026279,2]
[391862220,1760932238380,-500.0,0.00026279,2]
[391862221,1760932238390,-500.0,0.00026279,2]
[391862222,1760932238399,-500.0,0.00026279,2]
[391862223,1760932238408,-500.0,0.00026279,2]
[391862224,1760932238419,-500.0,0.00026279,2]
[391862225,1760932238429,-500.0,0.00026279,2]
[391862226,1760932238442,-500.0,0.00026279,2]
[391862227,1760932238455,-500.0,0.00026279,2]
[391862228,1760932238466,-500.0,0.00026279,2]
[391862229,1760932238477,-500.0,0.00026279,2]
[391862230,1760932238488,-500.0,0.00026279,2]
[391862231,1760932238498,-500.0,0.00026279,2]
[391862232,1760932238508,-500.0,0.00026279,2]
[391862233,1760932238518,-500.0,0.00026279,2]
[391862234,1760932238527,-500.0,0.00026279,2]
[391862235,1760932238537,-500.0,0.00026279,2]
[391862236,1760932238546,-500.0,0.00026279,2]
[391862237,1760932238555,-500.0,0.00026279,2]
[391862238,1760932238564,-194.72792766,0.00026282,2]
[391862239,1760932238573,-533.88981491,0.00026282,2]
[391862240,1760932238582,-500.0,0.00026282,2]
[391862241,1760932238591,-500.0,0.00026282,2]
[391862242,1760932238600,-500.0,0.00026282,2]
[391862243,1760932238610,-500.0,0.00026282,2]
[391862244,1760932238619,-500.0,0.00026282,2]
[391862245,1760932238628,-500.0,0.00026282,2]
[391862246,1760932238638,-500.0,0.00026282,2]
[391862247,1760932238647,-500.0,0.00026282,2]
[391862248,1760932238656,-500.0,0.00026282,2]
[391862249,1760932238666,-500.0,0.00026282,2]
[391862250,1760932238675,-500.0,0.00026282,2]
[391862251,1760932238684,-500.0,0.00026282,2]
[391862252,1760932238693,-500.0,0.00026282,2]
[391862253,1760932238705,-500.0,0.00026322,2]
[391862254,1760932238714,-500.0,0.00026322,2]
[391862255,1760932238723,-500.0,0.00026322,2]
[391862256,1760932238732,-778.08066744,0.0002648,2]
[391862257,1760932238741,-306.93492634,0.00026492,2]
[391862258,1760932238751,-420.0,0.00026493,2]
[391862259,1760932238760,-213.0,0.00026494,2]
[391862260,1760932238769,-420.0,0.00026494,2]
[391862261,1760932238779,-420.0,0.00026494,2]
[391862262,1760932238788,-1680.0,0.00026513,2]
[391862263,1760932238797,-501.82482131,0.00026602,2]
[391862264,1760932238806,-460.0,0.00026644,2]
[391862265,1760932238816,-248.45353234,0.00026747,2]
[391862266,1760932238825,-1656.45561507,0.00026804,2]
[391862267,1760932238835,-201.93286099,0.0002683,2]
[391862268,1760932238844,-553.64373807,0.0002683,2]
[391862269,1760932238853,-502.68394192,0.0002687,2]
[391862270,1760932238862,-1000.0,0.0002687,2]
[391862271,1760932238872,-648.84,0.0002704,2]
[391862272,1760932238881,-168.0,0.00027182,2]
[391862273,1760932238891,-704.82327672,0.00027192,2]
[391862274,1760932238900,-168.0,0.00027194,2]
[391862275,1760932238909,-271.746051,0.00027347,2]
[391862276,1760932238918,-209.40437684,0.00027378,2]
[391862277,1760932238928,-574.12855637,0.00027378,2]
[391862278,1760932238937,-1383.2545199,0.0002743,2]
[391862279,1760932238947,-545.66209128,0.00027448,2]
[391862280,1760932238961,-168.0,0.00027565,2]
[391862281,1760932238970,-168.0,0.00027593,2]
[391862282,1760932238980,-744.69779208,0.00027609,2]
[391862283,1760932238989,-2588.21189855,0.0002781,2]
[391862284,1760932238999,-168.0,0.00027832,2]
[391862285,1760932239009,-217.15233878,0.00027926,2]
[391862286,1760932239018,-595.37131296,0.00027926,2]
[391862287,1760932239028,-155.584,0.00027935,18]
[391862288,1760932239038,-295.03856966,0.00027947,2]
[391862289,1760932239047,-3885.0,0.00028127,2]
[391862290,1760932239057,-593.0,0.00028227,7]
[391862291,1760932239067,-193.52,0.00028336,10]
[391862292,1760932239076,-302.14,0.00028336,10]
[391862293,1760932239085,-205.78127294,0.00028345,2]
[391862294,1760932239095,-200.97875833,0.00028345,2]
[391862295,1760932239105,-54778.3381748,0.00028346,2]
[391862296,1760932239115,-611.0,0.00028424,2]
[391862297,1760932239125,-593.0,0.00028432,2]
[391862298,1760932239134,-225.18697532,0.00028474,2]
[391862299,1760932239143,-617.40005154,0.00028474,2]
[391862300,1760932239152,-318.33108831,0.00028547,2]
[391862301,1760932239162,-169.152193,0.00028652,60]
[391862302,1760932239172,-587.0,0.00028718,2]
[391862303,1760932239182,-183.0,0.00028718,2]
[391862304,1760932239191,-611.0,0.00028807,7]
[391862305,1760932239203,-2351.0,0.00028873,2]
[391862306,1760932239213,-233.51889341,0.00029022,2]
[391862307,1760932239223,-640.24385345,0.00029022,2]
[391862308,1760932239233,-341.62360697,0.00029147,2]
[391862309,1760932239243,-611.0,0.00029154,2]
[391862310,1760932239253,-4204.0,0.00029305,2]
[391862311,1760932239263,-411.0,0.00029305,2]
[391862312,1760932239272,-611.0,0.00029403,2]
[391862313,1760932239282,-744.69779208,0.00029565,2]
[391862314,1760932239292,-242.15909246,0.0002957,2]
[391862315,1760932239301,-663.93287602,0.0002957,2]
[391862316,1760932239311,-611.0,0.00029628,2]
[391862317,1760932239320,-3886.0,0.00029669,2]
[391862318,1760932239329,-364.91612563,0.00029747,2]
[391862319,1760932239340,-12576.27233032,0.00029889,2]
[391862321,1760932239350,-8542.0,0.00029951,30]
[391862322,1760932239361,-456.0,0.00029951,30]
[391862323,1760932239508,-571.0,0.00029951,30]
[391862324,1760932239517,-500.0,0.00029973,5]
[391862325,1760932239527,-500.0,0.00029973,5]
[391862326,1760932239536,-500.0,0.00029973,5]
[391862327,1760932239545,-504.56541103,0.00029973,5]
[391862328,1760932239554,-54778.3381748,0.00029989,2]
[391862329,1760932239563,-100000.0,0.0002999,2]
[391862330,1760932239572,-3885.0,0.0003,2]
[391862331,1760932239581,-162.615,0.0003,2]
[391862332,1760932239592,-311.0,0.0003,14]
[391862333,1760932239601,-8542.0,0.00030006,30]
[391862334,1760932239610,-456.0,0.00030006,30]
[391862335,1760932239620,-571.0,0.00030006,30]
[391862336,1760932239629,-8542.0,0.00030061,30]
[391862337,1760932239638,-456.0,0.00030061,30]
[391862338,1760932239648,-571.0,0.00030061,30]
[391862339,1760932239657,-611.0,0.00030093,2]
[391862340,1760932239666,-8542.0,0.00030115,30]
[391862341,1760932239678,-456.0,0.00030115,30]
[391862342,1760932239689,-571.0,0.00030115,30]
[391862343,1760932239699,-251.11897888,0.00030118,2]
[391862344,1760932239713,-688.49839244,0.00030118,2]
[391862345,1760932239723,-302.16685916,0.00030136,120]
[391862346,1760932239732,-1003.889306,0.00030137,120]
[391862347,1760932239741,-252.95916688,0.00030137,2]
[391862349,1760932239750,-54778.3381748,0.0003016,2]
[391862351,1760932239759,-8542.0,0.0003017,30]
[391862353,1760932239768,-456.0,0.0003017,30]
[391862355,1760932239778,-571.0,0.0003017,30]
[391862357,1760932239787,-8542.0,0.00030225,30]
[391862359,1760932239797,-456.0,0.00030225,30]
[391862361,1760932239808,-571.0,0.00030225,30]
[391862362,1760932239817,-611.0,0.00030235,2]
[391862364,1760932239826,-611.0,0.00030247,2]
[391862366,1760932239835,-356.3577373,0.00030248,2]
[391862368,1760932239844,-153.8853492,0.00030248,2]
[391862370,1760932239853,-17267.1186903,0.00030248,2]
[391862372,1760932239863,-733.4980097,0.00030248,2]
[391862374,1760932239872,-54778.3381748,0.0003027,2]
[391862376,1760932239881,-150.0,0.00030273,5]
[391862378,1760932239892,-150.0,0.00030273,5]
[391862380,1760932239901,-8542.0,0.0003028,30]
[391862382,1760932239910,-456.0,0.0003028,30]
[391862384,1760932239920,-571.0,0.0003028,30]
[391862387,1760932239929,-402.9601108,0.00030291,2]
[391862389,1760932239938,-8542.0,0.00030335,30]
[391862390,1760932239947,-456.0,0.00030335,30]
[391862392,1760932239962,-571.0,0.00030335,30]
[391862394,1760932239971,-388.20864429,0.00030347,2]
[391862396,1760932239980,-8542.0,0.00030389,30]
[391862398,1760932239989,-456.0,0.00030389,30]
[391862401,1760932239999,-571.0,0.00030389,30]
[391862403,1760932240009,-311.0,0.00030411,14]
[391862405,1760932240019,-8542.0,0.00030444,30]
[391862407,1760932240029,-456.0,0.00030444,30]
[391862409,1760932240038,-571.0,0.00030444,30]
[391862410,1760932240048,-611.0,0.00030458,2]
[391862412,1760932240057,-54778.3381748,0.00030489,2]
[391862414,1760932240067,-500.99011191,0.00030492,11]
[391862416,1760932240076,-501.69533918,0.00030492,11]
[391862418,1760932240085,-8542.0,0.00030499,30]
[391862420,1760932240094,-456.0,0.00030499,30]
[391862422,1760932240104,-571.0,0.00030499,30]
[391862425,1760932240114,-151.0,0.000305,17]
[391862427,1760932240123,-1000.0,0.00030521,5]
[391862429,1760932240132,-1000.0,0.00030521,5]
[391862431,1760932240141,-500.0,0.00030521,5]
[391862432,1760932240150,-8542.0,0.00030554,30]
[391862434,1760932240159,-456.0,0.00030554,30]
[391862437,1760932240169,-571.0,0.00030554,30]
[391862438,1760932240178,-9213.24,0.0003059,6]
[391862441,1760932240188,-54778.3381748,0.0003059,2]
[391862443,1760932240199,-18426.46,0.000306,6]
[391862445,1760932240211,-8542.0,0.00030609,30]
[391862447,1760932240221,-456.0,0.00030609,30]
[391862449,1760932240230,-571.0,0.00030609,30]
[391862451,1760932240240,-8542.0,0.00030663,30]
[391862453,1760932240249,-456.0,0.00030663,30]
[391862454,1760932240258,-571.0,0.00030663,30]
[391862456,1760932240269,-260.4103811,0.00030666,2]
[391862459,1760932240278,-713.97283296,0.00030666,2]
[391862461,1760932240288,-36852.92,0.000307,6]
[391862463,1760932240298,-151.0,0.000307,19]
[391862464,1760932240311,-151.0,0.000307,30]
[391862467,1760932240320,-151.0,0.000307,30]
[391862469,1760932240330,-8542.0,0.00030718,30]
[391862471,1760932240339,-456.0,0.00030718,30]
[391862473,1760932240348,-571.0,0.00030718,30]
[391862475,1760932240357,-41625.37641706,0.00030773,3]
[391862477,1760932240367,-500.0,0.00030773,5]
[391862479,1760932240376,-8542.0,0.00030773,30]
[391862481,1760932240385,-456.0,0.00030773,30]
[391862482,1760932240394,-571.0,0.00030773,30]
[391862485,1760932240404,-302.21714398,0.00030821,5]
[391862487,1760932240413,-350.95765262,0.00030821,5]
[391862489,1760932240422,-8542.0,0.00030828,30]
[391862491,1760932240432,-456.0,0.00030828,30]
[391862493,1760932240445,-571.0,0.00030828,30]
[391862495,1760932240459,-177.81193469,0.00030873,2]
[391862497,1760932240468,-151.0,0.00030882,30]
[391862499,1760932240478,-151.0,0.00030882,30]
[391862501,1760932240489,-151.0,0.00030882,30]
[391862503,1760932240498,-279.948288,0.00030882,30]
[391862505,1760932240507,-151.0,0.00030882,30]
[391862507,1760932240517,-8542.0,0.00030883,30]
[391862509,1760932240526,-456.0,0.00030883,30]
[391862511,1760932240535,-571.0,0.00030883,30]
[391862513,1760932240544,-370000.0,0.000309,2]
[391862515,1760932240554,-402.9601108,0.000309,3]
[391862517,1760932240563,-34181.09,0.000309,7]
[391862519,1760932240572,-152.356427,0.000309,30]
[391862521,1760932240581,-5430.09,0.000309,2]
[391862523,1760932240590,-151.0,0.000309,30]
[391862524,1760932240599,-151.0,0.000309,30]
[391862526,1760932240609,-9014.21775297,0.000309,2]
[391862529,1760932240619,-151.0,0.000309,30]
[391862531,1760932240628,-151.0,0.000309,30]
[391862532,1760932240638,-151.0,0.000309,30]
[391862534,1760932240647,-8542.0,0.00030937,30]
[391862536,1760932240657,-456.0,0.00030937,30]
[391862539,1760932240666,-571.0,0.00030937,30]
[391862541,1760932240676,-3885.0,0.00030944,7]
[391862542,1760932240685,-411.50116294,0.00030947,2]
[391862544,1760932240694,-808.9539317,0.00030957,2]
[391862546,1760932240704,-168.0,0.00030984,2]
[391862548,1760932240713,-161.58894564,0.00030991,5]
[391862550,1760932240722,-8542.0,0.00030992,30]
[391862552,1760932240731,-456.0,0.00030992,30]
[391862554,1760932240740,-571.0,0.00030992,30]
[391862556,1760932240749,-189.10710282,0.00030999,10]
[391862558,1760932240758,-1356179.45083815,0.00031,3]
[391862560,1760932240768,-195.25612313,0.00031,120]
[391862562,1760932240778,-1649.48600143,0.00031,120]
[391862564,1760932240788,-174.47334731,0.00031,120]
[391862566,1760932240796,-171.88400585,0.00031,120]
[391862568,1760932240806,-160.13210646,0.00031,120]
[391862570,1760932240814,-577.46812838,0.00031,120]
[391862572,1760932240823,-280.59493611,0.00031,120]
[391862574,1760932240833,-171.72962965,0.00031,120]
[391862576,1760932240842,-1422.19374567,0.00031,120]
[391862578,1760932240852,-4502.55785198,0.00031,2]
[391862580,1760932240861,-1727.96,0.00031,2]
[391862582,1760932240869,-402.9601108,0.00031,7]
[391862584,1760932240880,-606.0,0.00031,2]
[391862586,1760932240890,-151.0,0.00031,30]
[391862588,1760932240899,-151.0,0.00031,30]
[391862590,1760932240908,-151.0,0.00031,30]
[391862592,1760932240918,-186.059574,0.00031,30]
[391862594,1760932240927,-151.0,0.00031,30]
[391862596,1760932240936,-151.0,0.00031,30]
[391862598,1760932240945,-151.0,0.00031,30]
[391862600,1760932240958,-8542.0,0.00031047,30]
[391862602,1760932240968,-456.0,0.00031047,30]
[391862604,1760932240977,-571.0,0.00031047,30]
[391862606,1760932240986,-832.98567587,0.00031068,5]
[391862608,1760932240996,-1500.0,0.00031068,5]
[391862610,1760932241006,-8542.0,0.00031102,30]
[391862612,1760932241016,-456.0,0.00031102,30]
[391862614,1760932241025,-571.0,0.00031102,30]
[391862616,1760932241035,-13473.1305692,0.0003112,2]
[391862618,1760932241045,-163.1929884,0.00031123,30]
[391862620,1760932241054,-190.0811961,0.00031123,30]
[391862622,1760932241066,-707.3525763,0.00031123,30]
[391862624,1760932241079,-153.0,0.00031123,30]
[391862626,1760932241091,-383.5592343,0.00031123,30]
[391862628,1760932241102,-325.4928407,0.00031123,30]
[391862630,1760932241113,-298.5517163,0.00031123,30]
[391862632,1760932241124,-153.0,0.00031123,30]
[391862634,1760932241135,-163.1929884,0.00031123,30]
[391862636,1760932241145,-153.0,0.00031123,30]
[391862638,1760932241156,-190.1312825,0.00031123,30]
[391862640,1760932241166,-163.1929884,0.00031123,30]
[391862642,1760932241177,-163.1929884,0.00031123,30]
[391862643,1760932241191,-202.1001209,0.00031123,30]
[391862645,1760932241210,-167.0314028,0.00031123,30]
[391862647,1760932241221,-153.0,0.00031123,30]
[391862650,1760932241233,-823.0,0.00031129,2]
[391862652,1760932241245,-8542.0,0.00031156,30]
[391862654,1760932241256,-456.0,0.00031156,30]
[391862656,1760932241266,-571.0,0.00031156,30]
[391862658,1760932241277,-8555.14001231,0.00031211,30]
[391862659,1760932241287,-478.90234435,0.00031211,30]
[391862661,1760932241297,-593.9602415,0.00031211,30]
[391862663,1760932241307,-330.40645316,0.00031214,2]
[391862664,1760932241316,-740.38982778,0.00031214,2]
[391862665,1760932241325,-1002.26363648,0.0003127,2]
[391862666,1760932241333,-160.78,0.00031305,15]
[391862667,1760932241342,-172.26,0.00031312,15]
[391862668,1760932241350,-308.22476452,0.00031321,5]
[391862669,1760932241359,-160.78,0.00031405,15]
[391862670,1760932241368,-172.26,0.00031412,15]
[391862671,1760932241376,-2618.0,0.00031443,3]
[391862672,1760932241385,-315.0,0.00031482,2]
[391862673,1760932241394,-160.78,0.00031505,15]
[391862674,1760932241403,-172.26,0.00031512,15]
[391862675,1760932241414,-744.69779208,0.00031521,2]
[391862676,1760932241423,-434.7936816,0.00031547,2]
[391862677,1760932241432,-1849.38137941,0.00031568,3]
[391862679,1760932241443,-305.60283661,0.00031568,3]
[391862680,1760932241456,-168.0,0.00031594,2]
[391862682,1760932241465,-160.78,0.00031605,15]
[391862684,1760932241474,-172.29,0.00031612,15]
[391862686,1760932241483,-2000.0,0.00031616,5]
[391862688,1760932241492,-168.0,0.00031627,2]
[391862690,1760932241501,-1267.2715404,0.00031642,2]
[391862692,1760932241510,-311.0,0.00031644,14]
[391862694,1760932241519,-3637.0429988,0.00031656,2]
[391862697,1760932241529,-160.78,0.00031705,15]
[391862699,1760932241538,-767.7842514,0.00031762,2]
[391862701,1760932241547,-5000.0,0.00031795,3]
[391862703,1760932241556,-160.78,0.00031805,15]
[391862705,1760932241564,-256.04997888,0.00031873,5]
[391862707,1760932241573,-33077.4989905,0.000319,2]
[391862709,1760932241582,-1649.48600143,0.000319,120]
[391862711,1760932241591,-174.47334731,0.000319,120]
[391862713,1760932241600,-160.13210646,0.000319,120]
[391862715,1760932241609,-577.46812838,0.000319,120]
[391862717,1760932241618,-171.88400585,0.000319,120]
[391862719,1760932241627,-1422.19374567,0.000319,120]
[391862721,1760932241637,-160.78,0.00031905,15]
[391862723,1760932241646,-350.1420737,0.00031921,2]
[391862725,1760932241654,-112858.74109705,0.00032,4]
[391862727,1760932241663,-151.0,0.00032,30]
[391862729,1760932241672,-151.0,0.00032,30]
[391862731,1760932241681,-250.0,0.00032,7]